[Event "Reykjavik Open 2025"]
[Site "Reykjavik"]
[Date "2025.04.13"]
[Round "7.8"]
[White "Prraneeth Vuppala"]
[Black "Stefansson, Vignir Vatnar"]
[Result "1-0"]
[Annotator "ChessBase"]
[ECO "B07"]
[WhiteElo "2433"]
[BlackElo "2536"]
[PlyCount "87"]
[EventDate "2025.04.09"]
[EventType "swiss"]
[EventCountry "ISL"]
[SourceTitle "playchess.com"]
[Source "ChessBase"]
[SourceQuality "1"]
[TimeControl "40/5400+30:1800+30"]

1. e4 {[%emt 0:00:54]} d6 {[%emt 0:00:09]} 2. d4 {[%emt 0:00:40]} Nf6 {[%emt 0:00:06]} 3. Nc3 {[%emt 0:01:07]} e5 {[%emt 0:00:37]} 4. dxe5 {[%emt 0:02:59]} dxe5 {[%emt 0:00:08]} 5. Qxd8+ {[%emt 0:00:07]} Kxd8 {[%emt 0:00:05]} 6. Bc4 {[%emt 0:00:09]} Ke8 {[%emt 0:00:23]} 7. f4 {[%emt 0:00:55]} Bb4 {[%emt 0:03:35]} 8. Bd3 {[%emt 0:01:25]} Nbd7 {[%emt 0:03:11]} 9. Nf3 {[%emt 0:08:09]} exf4 {[%emt 0:07:48]} 10. Bxf4 {[%emt 0:00:00]} c6 {[%emt 0:01:52]} 11. O-O {[%emt 0:00:14]} Nc5 {[%emt 0:11:09]} 12. Be5 {[%emt 0:16:08]} Be6 {[%emt 0:06:41]} 13. a3 {[%emt 0:07:31]} Nxd3 {[%emt 0:11:01]} 14. cxd3 {[%emt 0:00:14]} Be7 {[%emt 0:00:08]} 15. h3 {[%emt 0:08:02]} Nd7 {[%emt 0:07:13]} 16. Bg3 {[%emt 0:00:08]} Nb6 {[%emt 0:05:53]} 17. d4 {[%emt 0:12:47]} Rd8 {[%emt 0:00:31]} 18. Rfe1 {[%emt 0:00:45]} f6 {[%emt 0:05:00]} 19. a4 {[%emt 0:01:14]} Nc4 {[%emt 0:02:42]} 20. d5 {[%emt 0:05:34]} Bf7 {[%emt 0:07:52]} 21. b3 {[%emt 0:03:21]} Na5 {[%emt 0:08:12]} 22. e5 {[%emt 0:07:23]} fxe5 {[%emt 0:07:19]} 23. Bxe5 {[%emt 0:00:55]} cxd5 {[%emt 0:01:09]} 24. Bc7 {[%emt 0:12:05]} Nxb3 {[%emt 0:00:06]} 25. Bxd8 {[%emt 0:00:04]} Kxd8 {[%emt 0:00:04]} 26. Rab1 {[%emt 0:01:10]} d4 {[%emt 0:00:26]} 27. Nb5 {[%emt 0:04:11]} Bc5 {[%emt 0:01:01]} 28. Ng5 {[%emt 0:00:35]} Bc4 {[%emt 0:01:33]} 29. Ne6+ {[%emt 0:00:27]} Bxe6 {[%emt 0:01:17]} 30. Rxe6 {[%emt 0:00:01]} Na5 {[%emt 0:02:09]} 31. Re5 {[%emt 0:01:57]} b6 {[%emt 0:00:04]} 32. Rd5+ {[%emt 0:01:05]} Ke7 {[%emt 0:00:27]} 33. Re1+ {[%emt 0:01:10]} Kf6 {[%emt 0:00:04]} 34. Nxd4 {[%emt 0:00:51]} Rf8 {[%emt 0:03:57]} 35. Kh2 {[%emt 0:01:38]} Nc4 {[%emt 0:01:13]} 36. Rd7 {[%emt 0:00:50]} Ne5 {[%emt 0:00:30]} 37. Rxa7 {[%emt 0:00:20]} Re8 {[%emt 0:00:44]} 38. Rf1+ {[%emt 0:00:22]} Kg6 {[%emt 0:00:05]} 39. Nf5 {[%emt 0:00:20]} Bf8 {[%emt 0:00:14]} 40. Nh4+ {[%emt 0:00:46]} Kh6 {[%emt 0:00:21]} 41. Nf5+ {[%emt 0:17:56]} Kg6 {[%emt 0:00:13]} 42. a5 {[%emt 0:00:05]} bxa5 {[%emt 0:00:36]} 43. Ra6+ {[%emt 0:00:09]} Kg5 {[%emt 0:00:14]} 44. Nd4 {[%emt 0:04:57]} 1-0

[Event "Reykjavik Open 2025"]
[Site "Reykjavik"]
[Date "2025.04.13"]
[Round "7.9"]
[White "Lu, Miaoyi"]
[Black "Kadric, Denis"]
[Result "0-1"]
[Annotator "ChessBase"]
[ECO "E68"]
[WhiteElo "2429"]
[BlackElo "2533"]
[PlyCount "120"]
[EventDate "2025.04.09"]
[EventType "swiss"]
[EventCountry "ISL"]
[SourceTitle "playchess.com"]
[Source "ChessBase"]
[SourceQuality "1"]
[TimeControl "40/5400+30:1800+30"]

1. d4 {[%emt 0:00:29]} d6 {[%emt 0:00:06]} 2. Nf3 {[%emt 0:00:25]} Nf6 {[%emt 0:00:22]} 3. c4 {[%emt 0:00:18]} g6 {[%emt 0:00:16]} 4. g3 {[%emt 0:00:14]} Bg7 {[%emt 0:00:42]} 5. Bg2 {[%emt 0:00:06]} O-O {[%emt 0:00:14]} 6. O-O {[%emt 0:00:03]} Nbd7 {[%emt 0:00:01]} 7. Nc3 {[%emt 0:00:13]} e5 {[%emt 0:00:02]} 8. e4 {[%emt 0:00:11]} Re8 {[%emt 0:00:06]} 9. Re1 {[%emt 0:00:38]} b6 {[%emt 0:00:22]} 10. b3 {[%emt 0:00:50]} exd4 {[%emt 0:00:36]} 11. Nxd4 {[%emt 0:00:03]} Bb7 {[%emt 0:00:02]} 12. Bb2 {[%emt 0:00:23]} c6 {[%emt 0:00:07]} 13. Qc2 {[%emt 0:01:22]} Qc7 {[%emt 0:00:12]} 14. Rad1 {[%emt 0:03:04]} a6 {[%emt 0:00:12]} 15. Qb1 {[%emt 0:06:16]} Re7 {[%emt 0:12:49]} 16. Bc1 {[%emt 0:15:41]} h6 {[%emt 0:12:54]} 17. Bf4 {[%emt 0:07:03]} Ne5 {[%emt 0:00:04]} 18. h3 {[%emt 0:04:20]} Kh7 {[%emt 0:10:05]} 19. Rd2 {[%emt 0:02:47]} Ne8 {[%emt 0:12:57]} 20. a4 {[%emt 0:01:57]} a5 {[%emt 0:09:38]} 21. Be3 {[%emt 0:12:22]} Nd7 {[%emt 0:00:40]} 22. g4 {[%emt 0:02:51]} Nc5 {[%emt 0:00:57]} 23. Nde2 {[%emt 0:07:39]} Rd8 {[%emt 0:06:53]} 24. Red1 {[%emt 0:02:32]} Bc8 {[%emt 0:01:40]} 25. Bf4 {[%emt 0:03:17]} Rdd7 {[%emt 0:03:14]} 26. Bg3 {[%emt 0:01:10]} Bb7 {[%emt 0:02:23]} 27. h4 {[%emt 0:01:32]} Kg8 {[%emt 0:00:48]} 28. f4 {[%emt 0:08:36]} Bc8 {[%emt 0:00:46]} 29. g5 {[%emt 0:02:42]} hxg5 {[%emt 0:00:21]} 30. hxg5 {[%emt 0:00:07]} Rd8 {[%emt 0:00:04]} 31. Bf3 {[%emt 0:03:00]} Bh3 {[%emt 0:03:23]} 32. Qc2 {[%emt 0:05:20]} Qc8 {[%emt 0:01:26]} 33. Kf2 {[%emt 0:03:54]} Bg4 {[%emt 0:01:26]} 34. Rh1 {[%emt 0:01:24]} Nc7 {[%emt 0:10:29]} 35. Rh4 {[%emt 0:03:04]} Bxf3 {[%emt 0:00:46]} 36. Kxf3 {[%emt 0:00:01]} N7e6 {[%emt 0:02:41]} 37. Bf2 {[%emt 0:00:42]} Qc7 {[%emt 0:02:07]} 38. Be3 {[%emt 0:01:03]} f6 {[%emt 0:00:14]} 39. gxf6 {[%emt 0:00:24]} Bxf6 {[%emt 0:00:01]} 40. Rh6 {[%emt 0:00:53]} Rg7 {[%emt 0:00:35]} 41. Ng3 {[%emt 0:11:15]} Nf8 {[%emt 0:04:45]} 42. Rdh2 {[%emt 0:09:11]} Qe7 {[%emt 0:00:05]} 43. Nce2 {[%emt 0:03:11]} Kf7 {[%emt 0:02:35]} 44. Nd4 {[%emt 0:03:53]} Qd7 {[%emt 0:02:04]} 45. Qf2 {[%emt 0:00:58]} Re8 {[%emt 0:01:45]} 46. Qf1 {[%emt 0:04:37]} Ke7 {[%emt 0:05:37]} 47. e5 {[%emt 0:01:08]} dxe5 {[%emt 0:01:16]} 48. fxe5 {[%emt 0:00:01]} Bxe5 {[%emt 0:00:47]} 49. Bg5+ {[%emt 0:00:01]} Kd6 {[%emt 0:00:05]} 50. Ndf5+ {[%emt 0:01:06]} Kc7 {[%emt 0:00:05]} 51. Nxg7 {[%emt 0:00:04]} Bxg7 {[%emt 0:01:03]} 52. R6h4 {[%emt 0:00:06]} Nfe6 {[%emt 0:00:46]} 53. Bf4+ {[%emt 0:00:20]} Kb7 {[%emt 0:02:11]} 54. Rd2 {[%emt 0:00:28]} Qe7 {[%emt 0:02:03]} 55. Rg4 {[%emt 0:02:02]} Nxf4 {[%emt 0:00:10]} 56. Rxf4 {[%emt 0:00:25]} Qe3+ {[%emt 0:00:03]} 57. Kg4 {[%emt 0:00:06]} Qxd2 {[%emt 0:00:05]} 58. Rf7+ {[%emt 0:00:18]} Nd7 {[%emt 0:01:24]} 59. Qf4 {[%emt 0:00:29]} Qxf4+ {[%emt 0:00:10]} 60. Kxf4 {[%emt 0:00:05]} Be5+ {[%emt 0:00:15]} 0-1

[Event "Reykjavik Open 2025"]
[Site "Reykjavik"]
[Date "2025.04.13"]
[Round "7.10"]
[White "Akesson, Ralf"]
[Black "Cornette, Matthieu"]
[Result "0-1"]
[Annotator "ChessBase"]
[ECO "D37"]
[WhiteElo "2361"]
[BlackElo "2528"]
[PlyCount "74"]
[EventDate "2025.04.09"]
[EventType "swiss"]
[EventCountry "ISL"]
[SourceTitle "playchess.com"]
[Source "ChessBase"]
[SourceQuality "1"]
[TimeControl "40/5400+30:1800+30"]

1. d4 {[%emt 0:00:22]} Nf6 {[%emt 0:00:21]} 2. c4 {[%emt 0:00:48]} e6 {[%emt 0:00:28]} 3. Nf3 {[%emt 0:00:46]} a6 {[%emt 0:01:42]} 4. Nc3 {[%emt 0:01:09]} d5 {[%emt 0:00:16]} 5. cxd5 {[%emt 0:00:37]} exd5 {[%emt 0:00:05]} 6. Bg5 {[%emt 0:00:22]} Be6 {[%emt 0:00:12]} 7. e3 {[%emt 0:00:40]} Nbd7 {[%emt 0:00:27]} 8. Ne5 {[%emt 0:02:54]} Nxe5 {[%emt 0:05:51]} 9. dxe5 {[%emt 0:00:44]} h6 {[%emt 0:00:03]} 10. Bh4 {[%emt 0:03:23]} g5 {[%emt 0:00:56]} 11. Bg3 {[%emt 0:01:24]} Ne4 {[%emt 0:03:28]} 12. Nxe4 {[%emt 0:08:06]} dxe4 {[%emt 0:00:05]} 13. Qa4+ {[%emt 0:02:04]} c6 {[%emt 0:07:15]} 14. Be2 {[%emt 0:01:31]} Qb6 {[%emt 0:11:29]} 15. O-O-O {[%emt 0:06:23]} Qb4 {[%emt 0:06:32]} 16. Qxb4 {[%emt 0:04:03]} Bxb4 {[%emt 0:00:05]} 17. h4 {[%emt 0:00:52]} Ke7 {[%emt 0:05:30]} 18. Rd4 {[%emt 0:15:21]} Bc5 {[%emt 0:01:09]} 19. Rxe4 {[%emt 0:00:45]} b5 {[%emt 0:04:04]} 20. Bd3 {[%emt 0:16:05]} Rad8 {[%emt 0:06:44]} 21. Bc2 {[%emt 0:01:21]} Bd5 {[%emt 0:07:16]} 22. Kb1 {[%emt 0:02:26]} Bb6 {[%emt 0:06:41]} 23. Rc1 {[%emt 0:07:39]} c5 {[%emt 0:04:24]} 24. Rg4 {[%emt 0:03:28]} Be6 {[%emt 0:00:12]} 25. Re4 {[%emt 0:00:47]} Rd2 {[%emt 0:01:23]} 26. Rh1 {[%emt 0:02:57]} Rhd8 {[%emt 0:02:46]} 27. hxg5 {[%emt 0:00:47]} hxg5 {[%emt 0:00:23]} 28. Kc1 {[%emt 0:04:15]} Ba5 {[%emt 0:01:53]} 29. a3 {[%emt 0:02:51]} Rxc2+ {[%emt 0:02:18]} 30. Kxc2 {[%emt 0:00:09]} Bf5 {[%emt 0:00:02]} 31. f3 {[%emt 0:01:03]} Bxe4+ {[%emt 0:00:44]} 32. fxe4 {[%emt 0:00:06]} Rd2+ {[%emt 0:00:02]} 33. Kb1 {[%emt 0:03:34]} Rxg2 {[%emt 0:00:05]} 34. Rh3 {[%emt 0:00:38]} Rg1+ {[%emt 0:04:14]} 35. Ka2 {[%emt 0:01:05]} g4 {[%emt 0:00:04]} 36. Bh4+ {[%emt 0:00:39]} Ke6 {[%emt 0:00:05]} 37. Rh2 {[%emt 0:00:12]} g3 {[%emt 0:00:38]} 0-1

[Event "Reykjavik Open 2025"]
[Site "Reykjavik"]
[Date "2025.04.13"]
[Round "7.11"]
[White "Bekker, Stefan"]
[Black "Kunin, Vitaly"]
[Result "1-0"]
[Annotator "ChessBase"]
[ECO "B51"]
[WhiteElo "2358"]
[BlackElo "2522"]
[PlyCount "155"]
[EventDate "2025.04.09"]
[EventType "swiss"]
[EventCountry "ISL"]
[SourceTitle "playchess.com"]
[Source "ChessBase"]
[SourceQuality "1"]
[TimeControl "40/5400+30:1800+30"]

1. e4 {[%emt 0:00:04]} c5 {[%emt 0:01:13]} 2. Nf3 {[%emt 0:00:05]} Nc6 {[%emt 0:01:27]} 3. Bb5 {[%emt 0:00:09]} d6 {[%emt 0:01:16]} 4. O-O {[%emt 0:00:41]} Bd7 {[%emt 0:00:06]} 5. c3 {[%emt 0:00:10]} Nf6 {[%emt 0:00:06]} 6. Re1 {[%emt 0:00:05]} a6 {[%emt 0:00:09]} 7. Bf1 {[%emt 0:00:04]} Bg4 {[%emt 0:00:11]} 8. h3 {[%emt 0:00:03]} Bxf3 {[%emt 0:00:11]} 9. Qxf3 {[%emt 0:00:06]} g6 {[%emt 0:00:22]} 10. d3 {[%emt 0:00:05]} Bg7 {[%emt 0:00:16]} 11. Nd2 {[%emt 0:00:03]} O-O {[%emt 0:01:15]} 12. Qd1 {[%emt 0:00:47]} b5 {[%emt 0:00:44]} 13. Nf3 {[%emt 0:00:04]} e5 {[%emt 0:09:38]} 14. Be3 {[%emt 0:05:35]} Re8 {[%emt 0:01:54]} 15. Qc2 {[%emt 0:14:14]} Rc8 {[%emt 0:01:31]} 16. a3 {[%emt 0:05:16]} h6 {[%emt 0:03:28]} 17. Rad1 {[%emt 0:01:39]} Nd4 {[%emt 0:05:35]} 18. Nxd4 {[%emt 0:04:02]} cxd4 {[%emt 0:02:06]} 19. Bd2 {[%emt 0:01:12]} Nd7 {[%emt 0:08:36]} 20. Qb1 {[%emt 0:02:29]} dxc3 {[%emt 0:01:13]} 21. Bxc3 {[%emt 0:02:44]} Nc5 {[%emt 0:00:07]} 22. g3 {[%emt 0:03:13]} h5 {[%emt 0:04:53]} 23. h4 {[%emt 0:00:25]} Rc6 {[%emt 0:10:04]} 24. Bd2 {[%emt 0:05:05]} Nb3 {[%emt 0:01:53]} 25. Be3 {[%emt 0:07:32]} a5 {[%emt 0:03:28]} 26. d4 {[%emt 0:04:31]} exd4 {[%emt 0:03:04]} 27. Bxb5 {[%emt 0:00:21]} dxe3 {[%emt 0:00:40]} 28. Rxe3 {[%emt 0:00:13]} Nd4 {[%emt 0:04:35]} 29. Rxd4 {[%emt 0:06:49]} Rc5 {[%emt 0:00:52]} 30. Rxd6 {[%emt 0:05:21]} Qxd6 {[%emt 0:02:22]} 31. Bxe8 {[%emt 0:00:13]} Qd8 {[%emt 0:19:36]} 32. b4 {[%emt 0:02:18]} axb4 {[%emt 0:00:16]} 33. axb4 {[%emt 0:00:08]} Rc7 {[%emt 0:00:07]} 34. Ba4 {[%emt 0:01:23]} Qd2 {[%emt 0:01:11]} 35. Qb3 {[%emt 0:12:46]} Bd4 {[%emt 0:01:45]} 36. Rf3 {[%emt 0:00:51]} Qe1+ {[%emt 0:00:25]} 37. Kg2 {[%emt 0:06:01]} Qxe4 {[%emt 0:00:20]} 38. Bb5 {[%emt 0:04:23]} Bc3 {[%emt 0:07:01]} 39. Be8 {[%emt 0:07:26]} Bf6 {[%emt 0:05:26]} 40. b5 {[%emt 0:01:13]} Re7 {[%emt 0:00:36]} 41. Bc6 {[%emt 0:30:30]} Qd4 {[%emt 0:01:56]} 42. b6 {[%emt 0:00:00]} Be5 {[%emt 0:00:03]} 43. b7 {[%emt 0:00:00]} Bb8 {[%emt 0:00:06]} 44. Be8 {[%emt 0:00:00]} Qg7 {[%emt 0:02:30]} 45. Bc6 {[%emt 0:00:00]} Kh7 {[%emt 0:00:29]} 46. Bd5 {[%emt 0:00:00]} f5 {[%emt 0:00:30]} 47. Qc3 {[%emt 0:00:00]} Rd7 {[%emt 0:02:54]} 48. Qc4 {[%emt 0:00:00]} Qe5 {[%emt 0:01:33]} 49. Rd3 {[%emt 0:00:00]} Kg7 {[%emt 0:00:21]} 50. Qd4 {[%emt 0:00:00]} Qxd4 {[%emt 0:09:46]} 51. Rxd4 {[%emt 0:00:00]} Kf6 {[%emt 0:03:19]} 52. f4 {[%emt 0:00:00]} Ke7 {[%emt 0:03:05]} 53. Rd3 {[%emt 0:00:00]} Kd8 {[%emt 0:01:49]} 54. Kf3 {[%emt 0:00:41]} Rd6 {[%emt 0:00:11]} 55. Ke2 {[%emt 0:00:17]} Kc7 {[%emt 0:00:24]} 56. Rc3+ {[%emt 0:00:23]} Kb6 {[%emt 0:00:05]} 57. Bf3 {[%emt 0:00:17]} Re6+ {[%emt 0:00:25]} 58. Kf1 {[%emt 0:00:06]} Rd6 {[%emt 0:01:45]} 59. Rc8 {[%emt 0:00:33]} Ka7 {[%emt 0:00:06]} 60. Rc6 {[%emt 0:00:23]} Rxc6 {[%emt 0:02:59]} 61. Bxc6 {[%emt 0:00:06]} Kb6 {[%emt 0:00:06]} 62. Bd5 {[%emt 0:00:17]} Kc7 {[%emt 0:03:36]} 63. Kg2 {[%emt 0:00:50]} Ba7 {[%emt 0:02:17]} 64. Kf3 {[%emt 0:00:11]} Bg1 {[%emt 0:01:00]} 65. Bf7 {[%emt 0:00:07]} Kxb7 {[%emt 0:00:06]} 66. Bxg6 {[%emt 0:00:04]} Kc6 {[%emt 0:00:06]} 67. Bxf5 {[%emt 0:00:06]} Bd4 {[%emt 0:01:58]} 68. Bg6 {[%emt 0:00:04]} Bc3 {[%emt 0:00:04]} 69. Bxh5 {[%emt 0:00:03]} Be1 {[%emt 0:00:04]} 70. Bf7 {[%emt 0:00:15]} Kd6 {[%emt 0:00:05]} 71. h5 {[%emt 0:00:25]} Ke7 {[%emt 0:00:05]} 72. Bb3 {[%emt 0:00:07]} Kf6 {[%emt 0:00:05]} 73. g4 {[%emt 0:00:16]} Bh4 {[%emt 0:00:46]} 74. Bc2 {[%emt 0:00:07]} Kf7 {[%emt 0:00:47]} 75. h6 {[%emt 0:01:43]} Be1 {[%emt 0:00:32]} 76. g5 {[%emt 0:00:06]} Bc3 {[%emt 0:00:07]} 77. Kg4 {[%emt 0:00:09]} Kg8 {[%emt 0:00:45]} 78. g6 {[%emt 0:01:36]} 1-0

[Event "Reykjavik Open 2025"]
[Site "Reykjavik"]
[Date "2025.04.13"]
[Round "7.12"]
[White "Sivuk, Vitaly"]
[Black "Yankelevich, Lev"]
[Result "1-0"]
[Annotator "ChessBase"]
[ECO "A13"]
[WhiteElo "2505"]
[BlackElo "2413"]
[PlyCount "93"]
[EventDate "2025.04.09"]
[EventType "swiss"]
[EventCountry "ISL"]
[SourceTitle "playchess.com"]
[Source "ChessBase"]
[SourceQuality "1"]
[TimeControl "40/5400+30:1800+30"]

1. Nf3 {[%emt 0:00:18]} Nf6 {[%emt 0:02:35]} 2. c4 {[%emt 0:00:06]} e6 {[%emt 0:00:17]} 3. g3 {[%emt 0:00:10]} d5 {[%emt 0:00:54]} 4. Bg2 {[%emt 0:00:15]} d4 {[%emt 0:06:54]} 5. O-O {[%emt 0:00:12]} Nc6 {[%emt 0:00:59]} 6. d3 {[%emt 0:00:15]} Bc5 {[%emt 0:00:47]} 7. Na3 {[%emt 0:00:11]} O-O {[%emt 0:01:26]} 8. Nc2 {[%emt 0:00:10]} a5 {[%emt 0:00:50]} 9. Re1 {[%emt 0:03:23]} e5 {[%emt 0:05:48]} 10. e3 {[%emt 0:00:08]} h6 {[%emt 0:13:27]} 11. exd4 {[%emt 0:02:31]} exd4 {[%emt 0:00:10]} 12. Bf4 {[%emt 0:04:47]} Be6 {[%emt 0:00:38]} 13. b3 {[%emt 0:06:37]} Rb8 {[%emt 0:10:17]} 14. Qd2 {[%emt 0:25:09]} Nd7 {[%emt 0:12:57]} 15. a3 {[%emt 0:03:27]} g5 {[%emt 0:02:47]} 16. Nxg5 {[%emt 0:35:53]} hxg5 {[%emt 0:00:11]} 17. Bxg5 {[%emt 0:00:07]} Be7 {[%emt 0:06:15]} 18. Bh6 {[%emt 0:02:40]} Nc5 {[%emt 0:12:39]} 19. Bxf8 {[%emt 0:00:16]} Bxf8 {[%emt 0:00:14]} 20. Rab1 {[%emt 0:00:45]} Bf5 {[%emt 0:00:25]} 21. Bf1 {[%emt 0:00:41]} Qf6 {[%emt 0:00:45]} 22. b4 {[%emt 0:00:50]} axb4 {[%emt 0:02:58]} 23. axb4 {[%emt 0:00:05]} Ne6 {[%emt 0:00:26]} 24. f4 {[%emt 0:01:06]} Bh6 {[%emt 0:01:37]} 25. Bg2 {[%emt 0:00:42]} Ne7 {[%emt 0:00:22]} 26. Be4 {[%emt 0:01:51]} Bxe4 {[%emt 0:04:56]} 27. Rxe4 {[%emt 0:00:57]} Nf5 {[%emt 0:00:13]} 28. Kh1 {[%emt 0:01:52]} Bg7 {[%emt 0:04:07]} 29. Rf1 {[%emt 0:02:27]} c5 {[%emt 0:01:55]} 30. b5 {[%emt 0:00:16]} Ra8 {[%emt 0:01:16]} 31. Ree1 {[%emt 0:00:51]} Qh6 {[%emt 0:04:06]} 32. Qg2 {[%emt 0:01:37]} Ra2 {[%emt 0:00:11]} 33. Re2 {[%emt 0:00:00]} Rb2 {[%emt 0:01:30]} 34. Rfe1 {[%emt 0:02:23]} Rb3 {[%emt 0:00:52]} 35. Qf3 {[%emt 0:01:00]} Qh3 {[%emt 0:00:51]} 36. Ra1 {[%emt 0:02:21]} Ne3 {[%emt 0:01:07]} 37. Qxb7 {[%emt 0:01:37]} Rxd3 {[%emt 0:00:26]} 38. Qa8+ {[%emt 0:00:35]} Bf8 {[%emt 0:00:11]} 39. b6 {[%emt 0:00:31]} Nxc2 {[%emt 0:01:06]} 40. Rxc2 {[%emt 0:00:32]} Rxg3 {[%emt 0:00:02]} 41. b7 {[%emt 0:08:28]} d3 {[%emt 0:11:18]} 42. Rd2 {[%emt 0:02:14]} Nc7 {[%emt 0:02:18]} 43. Qa2 {[%emt 0:02:07]} Na6 {[%emt 0:04:02]} 44. Qxa6 {[%emt 0:02:45]} Qh5 {[%emt 0:01:30]} 45. Qc6 {[%emt 0:01:26]} Qh8 {[%emt 0:00:49]} 46. Rb1 {[%emt 0:01:08]} Rg6 {[%emt 0:00:41]} 47. Rg2 {[%emt 0:00:52]} 1-0

[Event "Reykjavik Open 2025"]
[Site "Reykjavik"]
[Date "2025.04.13"]
[Round "7.13"]
[White "Li, Guohao"]
[Black "Papp, Gabor"]
[Result "1/2-1/2"]
[Annotator "ChessBase"]
[ECO "E13"]
[WhiteElo "2356"]
[BlackElo "2502"]
[PlyCount "160"]
[EventDate "2025.04.09"]
[EventType "swiss"]
[EventCountry "ISL"]
[SourceTitle "playchess.com"]
[Source "ChessBase"]
[SourceQuality "1"]
[TimeControl "40/5400+30:1800+30"]

1. d4 {[%emt 0:00:06]} Nf6 {[%emt 0:05:44]} 2. c4 {[%emt 0:01:38]} e6 {[%emt 0:00:06]} 3. Nf3 {[%emt 0:00:04]} b6 {[%emt 0:00:25]} 4. Nc3 {[%emt 0:00:11]} Bb7 {[%emt 0:00:12]} 5. Bg5 {[%emt 0:00:24]} h6 {[%emt 0:00:37]} 6. Bh4 {[%emt 0:00:35]} Bb4 {[%emt 0:00:29]} 7. Qc2 {[%emt 0:00:48]} g5 {[%emt 0:00:25]} 8. Bg3 {[%emt 0:00:03]} Ne4 {[%emt 0:00:05]} 9. e3 {[%emt 0:00:06]} Bxc3+ {[%emt 0:00:26]} 10. bxc3 {[%emt 0:00:06]} Nxg3 {[%emt 0:00:16]} 11. hxg3 {[%emt 0:00:09]} d6 {[%emt 0:00:37]} 12. Bd3 {[%emt 0:02:55]} g4 {[%emt 0:00:37]} 13. Nh4 {[%emt 0:00:48]} Qe7 {[%emt 0:00:26]} 14. Be4 {[%emt 0:04:00]} Nc6 {[%emt 0:00:43]} 15. f4 {[%emt 0:01:51]} d5 {[%emt 0:31:17]} 16. Bd3 {[%emt 0:01:55]} O-O-O {[%emt 0:00:11]} 17. O-O {[%emt 0:01:21]} Ba6 {[%emt 0:05:25]} 18. Qe2 {[%emt 0:07:05]} Na5 {[%emt 0:01:44]} 19. c5 {[%emt 0:00:02]} Bxd3 {[%emt 0:00:48]} 20. Qxd3 {[%emt 0:00:02]} Nc4 {[%emt 0:00:45]} 21. cxb6 {[%emt 0:01:39]} axb6 {[%emt 0:00:31]} 22. e4 {[%emt 0:01:55]} Kb7 {[%emt 0:03:03]} 23. f5 {[%emt 0:03:40]} Qg5 {[%emt 0:17:35]} 24. Rf2 {[%emt 0:09:25]} Rhe8 {[%emt 0:01:06]} 25. Re1 {[%emt 0:10:23]} e5 {[%emt 0:00:59]} 26. exd5 {[%emt 0:01:50]} exd4 {[%emt 0:00:03]} 27. Rxe8 {[%emt 0:01:51]} Rxe8 {[%emt 0:00:16]} 28. Rf4 {[%emt 0:12:38]} Re1+ {[%emt 0:02:32]} 29. Kh2 {[%emt 0:00:30]} Ne3 {[%emt 0:05:30]} 30. d6 {[%emt 0:03:49]} cxd6 {[%emt 0:02:55]} 31. Qxd4 {[%emt 0:03:34]} Qe7 {[%emt 0:00:57]} 32. Qd3 {[%emt 0:03:58]} Qe5 {[%emt 0:01:28]} 33. f6 {[%emt 0:03:49]} Rd1 {[%emt 0:00:59]} 34. Qh7 {[%emt 0:11:29]} Qd5 {[%emt 0:01:59]} 35. Rd4 {[%emt 0:03:31]} Nf1+ {[%emt 0:00:54]} 36. Kg1 {[%emt 0:00:03]} Nxg3+ {[%emt 0:00:12]} 37. Rxd1 {[%emt 0:02:01]} Qxd1+ {[%emt 0:00:07]} 38. Kf2 {[%emt 0:00:04]} Nh1+ {[%emt 0:00:23]} 39. Ke3 {[%emt 0:00:05]} Qe1+ {[%emt 0:08:51]} 40. Kd4 {[%emt 0:00:09]} Qe5+ {[%emt 0:03:05]} 41. Kc4 {[%emt 0:30:02]} Qe6+ {[%emt 0:34:13]} 42. Kb4 {[%emt 0:01:03]} Ng3 {[%emt 0:00:31]} 43. Qxh6 {[%emt 0:01:37]} Qxa2 {[%emt 0:01:08]} 44. Qe3 {[%emt 0:01:58]} Qb1+ {[%emt 0:00:00]} 45. Kc4 {[%emt 0:00:00]} Ne4 {[%emt 0:00:00]} 46. Kd5 {[%emt 0:00:00]} Nxf6+ {[%emt 0:00:00]} 47. Kxd6 {[%emt 0:00:00]} Ne4+ {[%emt 0:00:00]} 48. Ke5 {[%emt 0:00:00]} Nc5 {[%emt 0:00:00]} 49. Kf4 {[%emt 0:00:00]} Qd1 {[%emt 0:00:00]} 50. Kg5 {[%emt 0:00:00]} Ka6 {[%emt 0:00:00]} 51. Nf5 {[%emt 0:00:00]} Qc2 {[%emt 0:00:00]} 52. Kxg4 {[%emt 0:00:00]} Qxg2+ {[%emt 0:00:00]} 53. Kf4 {[%emt 0:00:00]} Qf1+ {[%emt 0:00:00]} 54. Kg5 {[%emt 0:00:00]} Qc4 {[%emt 0:00:00]} 55. Nd6 {[%emt 0:00:00]} Qd5+ {[%emt 0:00:00]} 56. Nf5 {[%emt 0:00:00]} f6+ {[%emt 0:00:00]} 57. Kg6 {[%emt 0:00:00]} Nd7 {[%emt 0:01:38]} 58. Qd4 {[%emt 0:00:00]} Qe6 {[%emt 0:00:40]} 59. Nd6 {[%emt 0:06:24]} Ne5+ {[%emt 0:00:10]} 60. Kg7 {[%emt 0:01:00]} b5 {[%emt 0:01:34]} 61. Qb4 {[%emt 0:03:10]} Qe7+ {[%emt 0:01:39]} 62. Kg8 {[%emt 0:00:01]} Qd7 {[%emt 0:00:37]} 63. Qd4 {[%emt 0:03:02]} Nc4 {[%emt 0:03:13]} 64. Nxb5 {[%emt 0:01:02]} Qe6+ {[%emt 0:00:24]} 65. Kg7 {[%emt 0:00:01]} Qe7+ {[%emt 0:00:15]} 66. Kg6 {[%emt 0:00:09]} Ne5+ {[%emt 0:00:10]} 67. Kf5 {[%emt 0:00:09]} Kxb5 {[%emt 0:00:03]} 68. Qd5+ {[%emt 0:00:41]} Kb6 {[%emt 0:01:04]} 69. Qe6+ {[%emt 0:02:45]} Qxe6+ {[%emt 0:00:04]} 70. Kxe6 {[%emt 0:00:04]} Nd7 {[%emt 0:00:06]} 71. Kxd7 {[%emt 0:00:05]} f5 {[%emt 0:00:07]} 72. Kd6 {[%emt 0:00:10]} f4 {[%emt 0:00:03]} 73. c4 {[%emt 0:00:04]} Kb7 {[%emt 0:00:10]} 74. Kd7 {[%emt 0:00:04]} Kb6 {[%emt 0:00:24]} 75. Kd6 {[%emt 0:00:02]} Kb7 {[%emt 0:00:03]} 76. Kd7 {[%emt 0:00:04]} f3 {[%emt 0:00:02]} 77. c5 {[%emt 0:00:06]} f2 {[%emt 0:00:09]} 78. c6+ {[%emt 0:00:03]} Ka7 {[%emt 0:00:05]} 79. c7 {[%emt 0:00:04]} f1=Q {[%emt 0:00:14]} 80. c8=Q {[%emt 0:00:07]} Qf5+ {[%emt 0:00:22]} 1/2-1/2